Cogmind - Beta 11.1 @@@ ROGUE MODE // 2022.09.18 @ 12:01:57 Player: ClassActJerk Result: Destroyed by G-34 Mercenary with Small Laser Performance ------------- Evolutions (0) 0 Regions Visited (1) 200 Robots Destroyed (4) 20 Value Destroyed (96) 96 Prototype IDs (0) 0 Alien Tech Used (0) 0 Bonus (0) 0 TOTAL SCORE: 316 Bonus ------- None Cogmind --------- Core Integrity 0/250 Matter 280/300 Energy 52/100 System Corruption 0% Temperature Cool (30) Movement Core (400) Ox7 Location -10/Materials Parts ------- > --- POWER (1) -------- (None) > --- PROPULSION (2) --- (None) > --- UTILITY (2) ------ Large Storage Unit > --- WEAPON (2) ------- EM Pulse Gun Small Laser > --- INVENTORY (15) --- Heat Sink Medium Matter Pod (14) Signal Interpreter ECM Suite Light Armor Plating Light Armor Plating EM Pulse Gun Peak State ------------ > --- POWER ------------ Ion Engine > --- PROPULSION ------- Aluminum Leg Aluminum Leg > --- UTILITY ---------- Large Storage Unit Light Armor Plating > --- WEAPON ----------- Medium Laser Light Assault Rifle > --- INVENTORY -------- Light Ion Engine Heat Sink Signal Interpreter ECM Suite Light Armor Plating Light Armor Plating Light Armor Plating EM Pulse Gun EM Pulse Gun Small Laser [Rating: 8] Favorites ----------- Power Ion Engine Engine Ion Engine Propulsion Aluminum Leg Leg Aluminum Leg Utility Large Storage Unit Storage Large Storage Unit Protection Light Armor Plating Weapon Light Assault Rifle Energy Gun Medium Laser Ballistic Gun Light Assault Rifle Build | -11 -10 ------- Run | Scr Mat Slots Evolved . | . . Power . | . . Propulsion . | . . Utility . | . . Weapon . | . . Parts Attached 13 | 3 10 Power 2 | . 2 Engine 2 | . 2 Core . | . . Reactor . | . . Propulsion 2 | 1 1 Treads . | . . Leg 2 | 1 1 Wheel . | . . Hover . | . . Flight . | . . Utility 3 | . 3 Device . | . . Storage 1 | . 1 Processor . | . . Hackware . | . . Protection 2 | . 2 Artifact . | . . Weapon 6 | 2 4 Energy Gun 4 | 1 3 Energy Cannon . | . . Ballistic Gun 2 | 1 1 Ballistic Cannon . | . . Launcher . | . . Special Weapon . | . . Impact Weapon . | . . Slashing Weapon . | . . Piercing Weapon . | . . Special Melee Weapon . | . . Unidentified Prototypes . | . . Parts Lost 8 | . 8 Power 2 | . 2 Propulsion 2 | . 2 Utility 2 | . 2 Weapon 2 | . 2 Highest Loss Streak 8 | . 8 To Critical Strikes . | . . Average Slot Usage (%) 91 | . 91 Engine 13 | . 13 Leg 26 | . 26 Storage 13 | . 13 Protection 9 | . 9 Energy Gun 8 | . 8 Ballistic Gun 18 | . 18 Naked Turns . | . . Heaviest Build 31 | 3 31 Greatest Support 20 | 10 20 Greatest Overweight (x) 9 | . 9 Average Overweight (x) . | . 1 Largest Inventory Capacity 15 | 5 15 Average Capacity 14 | 5 14 Most Carried 11 | 5 11 Average Carried 6 | 4 6 Final Capacity 15 | 5 15 Final Carried 7 | 5 7 Class Distribution -------------------- 100% | Mutant Dominant Class ---------------- Mutant | -10/Materials Resources | -11 -10 ----------- Run | Scr Mat Matter Collected 346 | 229 117 Remotely . | . . Salvage Created 130 | . 130 Parts 12 | . 12 Haulers Intercepted . | . . Recyclers Shooed 1 | . 1 Parts Field Recycled . | . . Retrieved Matter . | . . Parts Self-Destructed . | . . Prevented . | . . Kills | -11 -10 ------- Run | Scr Mat Combat Hostiles Destroyed 3 | . 3 Guns 3 | . 3 Classes Destroyed 3 | . 3 Builder 1 | . 1 Swarmer 1 | . 1 Grunt 2 | . 2 Best Kill Streak 2 | . 2 Combat Bots Only 2 | . 2 Max Kills in Single Turn 1 | . 1 Gunslinging . | . . Exploded . | . . Melee . | . . Uniques/NPCs Destroyed . | . . Combat | -11 -10 -------- Run | Scr Mat Damage Taken 1055 | . 1055 Core 251 | . 251 Absorbed by Shields . | . . Core Remaining (%) 100 | 100 . Volleys Fired 26 | . 26 Largest 2 | . 2 Hottest 80 | . 80 Shots Fired 45 | . 45 Gun 45 | . 45 Cannon . | . . Launcher . | . . Special . | . . Kinetic 32 | . 32 Thermal 11 | . 11 Explosive . | . . Electromagnetic 2 | . 2 Robot Hit Streak 11 | . 11 Robot Miss Streak 3 | . 3 Penetration Max . | . . Secondary Targets 1 | . 1 Max Gunslinging Chain 1 | . 1 Shots Hit Robots 28 | . 28 Core Hits 9 | . 9 Critical Kills . | . . Critical Parts Destroyed . | . . Critical Strikes 1 | . 1 Burn 1 | . 1 Melee Attacks . | . . Impact . | . . Slashing . | . . Piercing . | . . Sneak Attacks . | . . Combat Hostiles . | . . Follow-up Attacks . | . . Damage Inflicted 302 | . 302 Guns 302 | . 302 Cannons . | . . Explosions . | . . Melee . | . . Ramming . | . . Kinetic 206 | . 206 Thermal 86 | . 86 Explosive . | . . Electromagnetic 10 | . 10 Impact . | . . Slashing . | . . Piercing . | . . Highest Corruption . | . . Average Corruption . | . . Corruption Purged . | . . Corruption Blocked . | . . Overload Shots . | . . Overflow Damage . | . . Projectiles . | . . Explosions . | . . Melee . | . . Knockbacks . | . . Impact . | . . Kinetic . | . . Secondary . | . . Self-Inflicted Damage . | . . Shots . | . . Rammed . | . . Targets Rammed . | . . Kicked . | . . Crushed . | . . Highest Temperature 152 | . 152 Average Temperature 39 | . 39 Received Heat Transfer 336 | . 336 Siege Activations . | . . Robots Corrupted . | . . Combat Hostiles . | . . Parts Fried . | . . Impact Corruptions . | . . Robots Melted . | . . Combat Hostiles . | . . Parts Melted . | . . Heat Transferred 321 | . 321 Parts Sabotaged . | . . Parts Stolen . | . . Parts Stripped . | . . Power Chain Reactions . | . . Missiles Intercepted . | . . Alert | -11 -10 ------- Run | Scr Mat Peak Influence 135 | . 135 Initial . | . . Average 34 | . 37 Maximum Alert Level . | . . Low Security (%) 100 | 100 100 Level 1 . | . . Level 2 . | . . Level 3 . | . . Level 4 . | . . Level 5 . | . . High Security . | . . Max Security . | . . Squads Dispatched 2 | . 2 Investigation 1 | . 1 Extermination . | . . Reinforcement 1 | . 1 Assault . | . . Garrison . | . . Intercept . | . . Searches Triggered . | . . Construction Impeded . | . . Haulers Reinforced . | . . Active Scanning Responses . | . . Cargo Convoy Interrupts . | . . Stealth | -11 -10 --------- Run | Scr Mat Distress Signals 1 | . 1 Communications Jammed . | . . Distress Signals . | . . Times Spotted 18 | . 18 Peak Tracking Total 7 | . 7 Tactical Retreats 2 | . 2 Traps | -11 -10 ------- Run | Scr Mat Traps Triggered 1 | . 1 Indirectly . | . . Trap Hack Attempts . | . . Triggered . | . . Disarmed . | . . Reprogrammed . | . . Reused . | . . Traps Extracted . | . . Installed . | . . Triggered . | . . Machines | -11 -10 ---------- Run | Scr Mat Machines Disabled . | . . Max in Single Turn . | . . Machines Sabotaged . | . . Garrisons Compromised . | . . Overloaded Fab Kills . | . . Hacking | -11 -10 --------- Run | Scr Mat Machines Accessed 1 | . 1 Terminals 1 | . 1 Fabricators . | . . Repair Stations . | . . Recycling Units . | . . Scanalyzers . | . . Garrison Access . | . . Total Hacks 3 | . 3 Successful 3 | . 3 Failed . | . . Catastrophic . | . . Database Lockouts . | . . Manual . | . . Terminals 3 | . 3 Fabricators . | . . Repair Stations . | . . Recycling Units . | . . Scanalyzers . | . . Garrison Access . | . . Terminal Hacks 3 | . 3 Record 3 | . 3 Fabricator Hacks . | . . Repair Station Hacks . | . . Recycling Unit Hacks . | . . Scanalyzer . | . . Garrison Access Hacks . | . . Unauthorized Hacks . | . . Terminals . | . . Fabricators . | . . Repair Stations . | . . Recycling Units . | . . Scanalyzers . | . . Garrison Access . | . . Data Cores Recovered . | . . Used . | . . Hacking Detections . | . . Full Trace Events . | . . Feedback Events . | . . Feedback Blocked . | . . Robot Schematics Acquired . | . . Robots Built . | . . Authchips . | . . Time . | . . Total Robot Build Rating . | . . Part Schematics Acquired . | . . Parts Built . | . . Authchips . | . . Time . | . . Total Part Build Rating . | . . Parts Repaired . | . . Time . | . . Parts Recycled . | . . Recycled Matter . | . . Retrieved Matter . | . . Retrieved Components . | . . Parts Scanalyzed . | . . Part Schematics Acquired . | . . Parts Damaged . | . . Bothacking | -11 -10 ------------ Run | Scr Mat Used RIF Installer . | . . Robots Hacked . | . . Non-combat . | . . Combat . | . . Robot Hacks Applied . | . . Relay Couplers Released . | . . Fabnet Peak Effective % . | . . Robots Rewired . | . . Allies Hacked . | . . Hacks Repelled . | . . Allies | -11 -10 -------- Run | Scr Mat Total Allies . | . . Largest Group . | . . Highest-Rated Group . | . . Highest-Rated Ally . | . . Total Orders . | . . Ally Attacks . | . . Total Damage . | . . Kills . | . . Allies Corrupted . | . . Allies Melted . | . . Intel | -11 -10 ------- Run | Scr Mat Robot Analysis Total . | . . Derelict Logs Recovered . | . . Drone Launches . | . . Drone Recoveries . | . . Exploration | -11 -10 ------------- Run | Scr Mat Turns Passed 916 | 67 849 Spaces Moved 421 | 61 360 Core 25 | 21 4 Treads . | . . Legs 396 | 40 356 Wheels . | . . Hover . | . . Flight . | . . Fastest Speed 50 | 50 120 Average Speed 177 | 95 191 Slowest Speed 500 | 120 500 Overloaded Moves . | . . Propulsion Burnouts . | . . Robots Hopped . | . . Cave-ins Triggered . | . . Exploration Rate (%) 26 | 4 48 Regions Visited 1 Branch Regions . Pre-discovered Areas . | . . Known Exits Taken . | . . Unknown Exits Taken 1 | 1 . Scrap Searched . | . . Spaces Dug . | . . Terrain Destroyed . | . . Melee . | . . Projectile . | . . AOE . | . . Terrain Rammed . | . . Walls Destroyed . | . . Machines Disabled . | . . Actions | -11 -10 --------- Run | Scr Mat Total 547 | 68 479 Wait 70 | . 70 Move 420 | 60 360 Hop . | . . Pick Up 16 | 5 11 Fast Attach 4 | 3 1 Attach 8 | . 8 Detach . | . . Swap 1 | . 1 Drop 2 | . 2 Fire 26 | . 26 Melee . | . . Ram . | . . Kick . | . . Crush . | . . Escape Stasis . | . . Rewire . | . . Trap . | . . Miscellaneous . | . . Route ------- -11/Scrapyard -10/Materials (discovered 1 exit: [*Min]) History --------- Turn | Location | Event 18 | -11/Scrapyard | Discovered new exit (range 14) 68 | -11/Scrapyard | Entered Materials 315 | -10/Materials | Build established: Mutant 704 | -10/Materials | Discovered new exit (range 13) 886 | -10/Materials | Core integrity fell below 50% 904 | -10/Materials | Core integrity fell below 20% 917 | -10/Materials | Destroyed by G-34 Mercenary with Small Laser Last Messages --------------- 00858_ U-05 Engineer lays Concrete. 00868_ Ion Engine destroyed. 00869_ U-05 Engineer builds a Door. 00873_ U-05 Engineer destroyed. 00873_ Switching to secondary target: G-34 Mercenary. 00874_ Lgt. Armor Plating destroyed. 00874_ Lgt. Assault Rifle destroyed. 00874_ R-06 Scavenger collects Wheel. 00875_ U-05 Engineer lays Concrete. 00877_ G-47 Trooper suffers critical hit (Burn). 00878_ Aluminum Leg destroyed. 00879_ R-06 Scavenger collects Structural Scanner. 00881_ Aluminum Leg destroyed. 00883_ R-06 Scavenger collects Terrain Scan Processor. 00884_ Acquired 21 matter. 00886_ R-06 Scavenger collects Welding Torch. 00893_ Lgt. Ion Engine destroyed. 00894_ S-10 Pest destroyed. 00908_ Lgt. Armor Plating destroyed. 00909_ Med. Laser destroyed. Map ----- +----------------------------------------------------+ | # """ + ### #????????#"| | | # """ # T #?# #????????#"" < | | # """ # #?# #????????#"| | | # # ####+###??????#" | | # # # #??????#""" | | # # """ # """ ########### | | # "T" # """"" + """ # # | | # """ # """"" # """ # """ + | | ######## """"" # # == """ # | | ??????# """ # # === """ # | | ??????# # # =!= # | | ??????# # # # | | ??????# # | # # | | ??????# # ! # # | | ??###### ######### ########### | | # # ######### #?????????# | | # """ # # # #?????????# | | # """ # + * ########?????????# | | # """ # # #????????????????# | | # # #########???????????????## | | # """ # ######################### | | # """ # | | # """ + g T | | # # rg =% | | # """ # ###s##################### | | # """ !# # @ #???????????????#### | | # """ # #[[ """ #??????????????????? | | # # #[* """ #??????????????????? | | ######### ##[* """ #??????????????????? | | ????????# ## #??????????????????? | | ????????# ##########??????????????????? | | ????????# ???????????????????????????? | | ????????+ ???????????????????????????? | | ????????? ??????????????????????????? | | ?????????###??????????????????????????? | | ??????????????????????????????????????? | | ??????????????????????????????????????? | | ??????????????????????????????????????? | | ??????????????????????????????????????? | | | | | | | | | | | | | | | | | | | | | | | +----------------------------------------------------+ Best States ------------- Heat Dissipation 25 Energy Generation 10 Energy Capacity 250 Matter Stores 300 Matter Capacity 300 Sight Range 16 Terrain Scan Density 10 Armor Coverage 150 Evasion (%) 55 Item Schematics ----------------- None Robot Schematics ------------------ None Fabricated ------------ Nothing Alien Tech Used ----------------- None Achievements -------------- None Challenges ------------ None Game ------ Seed ThiefLayeredMagmablaster Manual? 0 Play Time 00:07:42 Cumulative 6.1 hours Start 2022.09.18 @ 11:54:03 End 2022.09.18 @ 12:01:57 Sessions 1 Manual Loads 0 Difficulty Rogue Special Mode None Game No. 22 Rogue 22 Adventurer 0 Explorer 0 Win Type - Total 0 Types 0/0/0/0/0/0/0/0/0 Lore% 4 Gallery% 11 Achievement% 12 Wizard Run 0 Options --------- ASCII 0 Keyboard 0 Movement Mouse Keybinds 0 Fullscreen 1 Font 24/Crisp Map View 76x50 Tactical HUD 1 Map Filters NONE Filters NONE Steam 1 RUN: f411c192-c6b5-41ec-9c05-f8cb374ce408